bitfinex/quotes_BTCUSD_20250508
["timestamp","ask_amount","ask_price","bid_price","bid_amount"]
[1746672141049,0.10379412,98756.0,98754.0,0.20252344]
[1746672141902,0.032,98755.0,98754.0,0.20252344]
[1746672142079,0.0345317,98755.0,98754.0,0.20252344]
[1746672142448,0.0311,98754.0,98753.0,0.20252549]
[1746672142753,0.04311602,98754.0,98753.0,0.20252549]
[1746672143675,0.03363171,98754.0,98753.0,0.20252549]
[1746672144077,0.03563171,98754.0,98753.0,0.20252549]
[1746672145365,0.05461471,98754.0,98753.0,0.20252549]
[1746672146227,0.3723,98753.0,98751.0,0.004]
[1746672146432,0.33915355,98752.0,98751.0,0.004]
[1746672146572,0.33662166,98752.0,98751.0,0.004]
[1746672146777,0.69560466,98752.0,98751.0,0.004]
[1746672147478,0.49307712,98752.0,98751.0,0.004]
[1746672148085,0.49407712,98752.0,98751.0,0.004]
[1746672149837,0.50356838,98752.0,98751.0,0.004]
[1746672150919,0.49407712,98752.0,98751.0,0.004]
[1746672151796,0.47509412,98752.0,98751.0,0.004]
[1746672152420,0.341,98752.0,98751.0,0.004]
[1746672153123,0.001,98752.0,98751.0,0.004]
[1746672154108,0.001,98752.0,98751.0,0.0198]
[1746672154282,0.001,98752.0,98751.0,0.004]
[1746672155660,0.001,98752.0,98751.0,0.005]
[1746672156088,0.00253162,98763.0,98755.0,0.20252139]
[1746672156261,0.0321,98762.0,98761.0,0.2025081]
[1746672156454,0.01012545,98761.0,98756.0,0.20251918]
[1746672156661,0.0321,98759.0,98758.0,0.20251523]
[1746672157481,0.01012576,98758.0,98751.0,0.004]
[1746672157683,0.01012596,98756.0,98752.0,0.20252566]
[1746672157874,0.015,98753.0,98751.0,0.004]
[1746672158079,0.03263173,98752.0,98751.0,0.004]
[1746672158710,0.01763173,98752.0,98751.0,0.004]
[1746672160642,0.03263173,98752.0,98751.0,0.004]
[1746672160924,0.35592894,98752.0,98751.0,0.004]
[1746672161077,0.35339721,98752.0,98751.0,0.004]
[1746672161285,0.36288493,98752.0,98751.0,0.004]
[1746672162928,0.69339721,98752.0,98751.0,0.004]
[1746672163125,0.69439721,98752.0,98751.0,0.004]
[1746672163807,0.67542166,98752.0,98751.0,0.004]
[1746672164212,0.67442166,98752.0,98751.0,0.004]
[1746672164668,0.69339664,98752.0,98751.0,0.004]
[1746672165028,0.69439664,98752.0,98751.0,0.004]
[1746672165292,0.69539664,98752.0,98751.0,0.004]
[1746672165625,0.70388408,98752.0,98751.0,0.004]
[1746672166097,0.70488408,98752.0,98751.0,0.004]
[1746672166468,0.70388408,98752.0,98751.0,0.004]
[1746672166670,0.70488408,98752.0,98751.0,0.004]
[1746672171244,0.69539664,98752.0,98751.0,0.004]
[1746672172595,0.36097498,98752.0,98751.0,0.004]
[1746672173216,0.37046312,98752.0,98751.0,0.004]
[1746672174012,0.40156312,98752.0,98751.0,0.004]
[1746672174336,0.39207498,98752.0,98751.0,0.004]
[1746672176539,0.4938691,98752.0,98751.0,0.004]
[1746672178538,0.4928691,98752.0,98751.0,0.004]
[1746672179014,0.4617691,98752.0,98751.0,0.004]
[1746672179696,0.47225659,98752.0,98751.0,0.004]
[1746672180285,0.48835659,98752.0,98751.0,0.004]
[1746672180529,0.50415659,98752.0,98751.0,0.004]
[1746672180735,0.50315659,98752.0,98751.0,0.004]
[1746672180945,0.50415659,98752.0,98751.0,0.004]
[1746672184985,0.50315659,98752.0,98751.0,0.004]
[1746672185200,0.50515659,98752.0,98751.0,0.004]
[1746672185755,0.50215659,98752.0,98751.0,0.004]
[1746672185971,0.50515659,98752.0,98751.0,0.004]
[1746672186366,0.50415659,98752.0,98751.0,0.004]
[1746672186569,0.50515659,98752.0,98751.0,0.004]
[1746672189650,0.51969744,98752.0,98751.0,0.004]
[1746672192074,0.51769744,98752.0,98751.0,0.004]
[1746672192472,0.51869744,98752.0,98751.0,0.004]
[1746672192709,0.51969744,98752.0,98751.0,0.004]
[1746672193006,0.51869744,98752.0,98751.0,0.004]
[1746672193513,0.51969744,98752.0,98751.0,0.004]
[1746672193695,0.51769744,98752.0,98751.0,0.004]
[1746672194052,0.51969744,98752.0,98751.0,0.004]
[1746672195085,0.51769744,98752.0,98751.0,0.004]
[1746672195342,0.51869744,98752.0,98751.0,0.004]
[1746672196040,0.51769744,98752.0,98751.0,0.004]
[1746672196388,0.51969744,98752.0,98751.0,0.004]
[1746672196723,0.50720995,98752.0,98751.0,0.004]
[1746672196886,0.50820995,98752.0,98751.0,0.004]
[1746672197113,0.51020995,98752.0,98751.0,0.004]
[1746672197326,0.50920995,98752.0,98751.0,0.004]
[1746672197546,0.50720995,98752.0,98751.0,0.004]
[1746672197744,0.50920995,98752.0,98751.0,0.004]
[1746672198157,0.01012781,98738.0,98723.0,0.01012935]
[1746672198376,0.10432647,98737.0,98735.0,0.20256235]
[1746672198580,0.02150717,98737.0,98735.0,0.21776235]
[1746672198826,0.01897498,98737.0,98736.0,0.0311]
[1746672199064,0.02150707,98751.0,98748.0,0.20253425]
[1746672199313,0.10179412,98750.0,98748.0,0.20253425]
[1746672199770,0.02846502,98749.0,98748.0,0.20253425]
[1746672199980,0.13025914,98749.0,98748.0,0.20253425]
[1746672201205,0.02846502,98749.0,98748.0,0.20253425]
[1746672201637,0.02846502,98749.0,98748.0,0.23453425]
[1746672201811,0.01897498,98749.0,98748.0,0.23453425]
[1746672202216,0.00044864,98751.0,98750.0,0.20253164]
[1746672202867,0.01941783,98751.0,98750.0,0.20253164]
[1746672203043,0.02890242,98751.0,98750.0,0.20253164]
[1746672203417,0.02890242,98751.0,98750.0,0.20353164]
[1746672203821,0.00993323,98751.0,98750.0,0.20353164]
[1746672204652,0.00993323,98751.0,98750.0,0.20553164]
[1746672205072,0.00993323,98751.0,98750.0,0.23743164]
[1746672205273,0.00993323,98751.0,98750.0,0.33922576]
[1746672205903,0.00044864,98751.0,98750.0,0.33722576]
[1746672206053,0.00044864,98751.0,98750.0,0.83722576]
[1746672206239,0.00044864,98751.0,98750.0,0.84222576]
[1746672206459,0.00044864,98751.0,98750.0,0.84822576]
[1746672206663,0.00044864,98751.0,98750.0,0.84222576]
[1746672206859,0.00044864,98751.0,98750.0,0.85414931]
[1746672207175,0.00044864,98751.0,98750.0,0.86114931]
[1746672207495,0.00044864,98751.0,98750.0,0.86858472]
[1746672207838,0.00044864,98751.0,98750.0,0.86114931]
[1746672209189,0.00044864,98751.0,98750.0,1.20114931]
[1746672209387,0.00044864,98751.0,98750.0,1.20873538]
[1746672209930,0.00044864,98751.0,98750.0,1.20973538]
[1746672210138,0.00044864,98751.0,98750.0,1.62803538]
[1746672211356,0.004,98789.0,98788.0,0.20245373]
[1746672211564,0.004,98789.0,98788.0,0.23526382]
[1746672211852,0.004,98789.0,98788.0,0.23425373]
[1746672212957,0.004,98789.0,98788.0,0.2353882]
[1746672213313,0.004,98789.0,98788.0,0.2363882]
[1746672213516,0.004,98789.0,98788.0,0.7363882]
[1746672215967,0.004,98789.0,98788.0,0.7352402]
[1746672227073,0.004,98789.0,98788.0,0.7199402]
[1746672230465,0.004,98789.0,98788.0,0.7034402]
[1746672231146,0.004,98789.0,98788.0,0.2034402]
[1746672231541,0.0204,98789.0,98788.0,0.2034402]
[1746672232374,0.0359,98789.0,98788.0,0.2024402]
[1746672232561,0.0359,98789.0,98788.0,0.2014402]
[1746672232741,0.0359,98789.0,98788.0,0.2024402]
[1746672233148,0.004,98789.0,98788.0,0.2024402]
[1746672233479,0.004,98789.0,98788.0,0.23585085]
[1746672233630,0.004,98789.0,98788.0,0.7348402]
[1746672235624,0.004,98789.0,98788.0,0.7034402]
[1746672237249,0.004,98789.0,98788.0,0.2034402]
[1746672237449,0.0202,98789.0,98788.0,0.2034402]
[1746672238473,0.0363,98789.0,98788.0,0.2034402]
[1746672240101,0.04578151,98789.0,98788.0,0.2034402]
[1746672240710,0.01348151,98789.0,98788.0,0.2034402]
[1746672242551,0.004,98789.0,98788.0,0.2034402]
[1746672249017,0.01348342,98789.0,98788.0,0.2034402]
[1746672251187,0.004,98789.0,98788.0,0.2189402]
[1746672251539,0.004,98789.0,98788.0,0.2034402]
[1746672254917,0.0196,98789.0,98788.0,0.2034402]
[1746672255123,0.0196,98789.0,98788.0,0.2024402]
[1746672255430,0.05154085,98789.0,98788.0,0.00013447]
[1746672255647,0.36763935,98789.0,98788.0,0.00013447]
[1746672255874,0.13879412,98789.0,98788.0,0.00013447]
[1746672256096,0.0205,98789.0,98788.0,0.00013447]
[1746672256541,0.04648412,98789.0,98788.0,0.00213447]
[1746672256757,0.04901488,98789.0,98788.0,0.00213447]
[1746672256970,0.04901488,98789.0,98788.0,0.00113447]
[1746672257866,0.04901488,98789.0,98788.0,0.00013447]
[1746672258485,0.05201488,98789.0,98788.0,0.00013447]
[1746672258863,0.04901488,98789.0,98788.0,0.00013447]
[1746672259078,0.05101488,98789.0,98788.0,0.00013447]
[1746672259286,0.03198412,98789.0,98788.0,0.00013447]
[1746672259906,0.01548412,98789.0,98788.0,0.00013447]
[1746672260105,0.006,98789.0,98788.0,0.00013447]
[1746672260945,0.004,98789.0,98788.0,0.00013447]
[1746672261151,0.20745168,98789.0,98788.0,0.00013447]
[1746672261398,0.23895168,98789.0,98788.0,0.00013447]
[1746672261745,0.23395168,98789.0,98788.0,0.00013447]
[1746672262309,0.24343346,98789.0,98788.0,0.00013447]
[1746672262728,0.04098178,98789.0,98788.0,0.00013447]
[1746672262939,0.00948178,98789.0,98788.0,0.2025882]
[1746672263517,0.00253054,98799.0,98796.0,0.21255721]
[1746672264132,0.01873054,98799.0,98796.0,0.21255721]
[1746672264329,0.03443054,98799.0,98796.0,0.21255721]
[1746672264798,0.00948111,98798.0,98796.0,0.21255721]
[1746672266135,0.00948111,98797.0,98796.0,0.21255721]
[1746672267272,0.03443054,98799.0,98798.0,0.20243324]
[1746672267491,0.0319,98799.0,98798.0,0.20243324]
[1746672267672,0.01012135,98801.0,98798.0,0.2125549]
[1746672268079,0.02572115,98803.0,98800.0,0.01012145]
[1746672268382,0.0163,98802.0,98799.0,0.21255274]
[1746672268606,0.0156,98801.0,98799.0,0.21255274]
[1746672269870,0.0094829,98800.0,98799.0,0.21255274]
[1746672270777,0.0094829,98800.0,98799.0,0.24485274]
[1746672270927,0.004,98809.0,98808.0,0.20241276]
[1746672271565,0.004,98809.0,98808.0,0.23572244]
[1746672271763,0.004,98809.0,98808.0,0.23471276]
[1746672272172,0.004,98809.0,98808.0,0.33650688]
[1746672273005,0.004,98809.0,98808.0,0.83650688]
[1746672273454,0.004,98809.0,98808.0,0.83850688]
[1746672273661,0.004,98809.0,98808.0,0.73671276]
[1746672273854,0.004,98809.0,98808.0,0.72031276]
[1746672274059,0.004,98809.0,98808.0,0.70241276]
[1746672274303,0.004,98809.0,98808.0,0.503]
[1746672274304,0.0347,98809.0,98808.0,0.503]
[1746672274443,0.0347,98809.0,98808.0,0.506]
[1746672275359,0.0347,98809.0,98808.0,0.503]
[1746672275578,0.0347,98809.0,98807.0,0.20241433]
[1746672275955,0.0347,98809.0,98808.0,0.001]
[1746672276542,0.0347,98809.0,98808.0,0.00012349]
[1746672276751,0.0347,98809.0,98807.0,0.20166131]
[1746672276953,0.0347,98809.0,98807.0,0.20112421]
[1746672277176,0.0347,98809.0,98807.0,0.20085566]
[1746672277602,0.0347,98809.0,98807.0,0.20072139]
[1746672277804,0.0347,98809.0,98807.0,0.20065426]
[1746672279565,0.0347,98809.0,98806.0,0.01012084]
[1746672279736,0.0347,98809.0,98807.0,0.2024148]
[1746672279936,0.0347,98809.0,98806.0,0.01012084]
[1746672280718,0.019,98809.0,98806.0,0.01012084]
[1746672280915,0.004,98809.0,98806.0,0.01012084]
[1746672281914,0.004,98809.0,98807.0,0.2024148]
[1746672282334,0.004,98809.0,98807.0,0.21932471]
[1746672282540,0.004,98809.0,98808.0,0.0159]
[1746672282740,0.004,98809.0,98808.0,0.0318]
[1746672284848,0.004,98809.0,98808.0,0.0328]
[1746672285029,0.004,98809.0,98808.0,0.002]
[1746672285676,0.23811071,98809.0,98808.0,0.002]
[1746672286640,0.23811071,98809.0,98808.0,0.001]
[1746672286819,0.70606661,98809.0,98808.0,0.001]
[1746672287022,0.20245168,98789.0,98788.0,0.00013447]
[1746672287222,0.35381773,98789.0,98788.0,0.00013447]
[1746672287422,0.35128665,98789.0,98788.0,0.00013447]
[1746672288612,0.35428665,98789.0,98788.0,0.00013447]
[1746672290062,0.35128665,98789.0,98788.0,0.00013447]
[1746672290467,0.35428665,98789.0,98788.0,0.00013447]
[1746672290670,0.35128665,98789.0,98788.0,0.00013447]
[1746672291072,0.35428665,98789.0,98788.0,0.00013447]
[1746672292211,0.36185655,98789.0,98788.0,0.00013447]
[1746672294854,0.35885655,98789.0,98788.0,0.00013447]
[1746672297445,0.36829159,98789.0,98788.0,0.00013447]
[1746672298837,0.35885655,98789.0,98788.0,0.00013447]
[1746672302535,0.69885655,98789.0,98788.0,0.00013447]
[1746672303546,0.70829412,98789.0,98788.0,0.00013447]
[1746672304854,0.69885655,98789.0,98788.0,0.00013447]
[1746672306791,0.70829584,98789.0,98788.0,0.00013447]
[1746672309502,0.69885655,98789.0,98788.0,0.00013447]
[1746672309788,0.66635655,98789.0,98788.0,0.00013447]
[1746672310201,0.21257137,98791.0,98788.0,0.00013447]
[1746672310202,0.01012237,98791.0,98788.0,0.00013447]
[1746672310366,0.01012217,98793.0,98789.0,0.01012258]
[1746672310598,0.21509919,98792.0,98788.0,0.00013447]
[1746672310792,0.01012237,98791.0,98788.0,0.00013447]
[1746672310961,0.00253074,98790.0,98788.0,0.00013447]
[1746672311398,0.002,98789.0,98788.0,0.00013447]
[1746672312042,0.00253074,98790.0,98788.0,0.00013447]
[1746672312400,0.01012227,98792.0,98789.0,0.01012258]
[1746672313050,0.01012115,98803.0,98797.0,0.01012176]
[1746672313274,0.01012115,98803.0,98788.0,0.00013447]
[1746672313275,0.005,98809.0,98804.0,0.01012104]
[1746672313478,0.005,98809.0,98807.0,0.2024148]
[1746672313479,0.00253024,98808.0,98807.0,0.2024148]
[1746672313678,0.005,98809.0,98807.0,0.2182148]
[1746672313854,0.005,98809.0,98808.0,0.0158]
[1746672315247,0.005,98809.0,98807.0,0.2024148]
[1746672315815,0.005,98809.0,98808.0,0.001]
[1746672316461,0.005,98809.0,98807.0,0.2024148]
[1746672316669,0.005,98809.0,98808.0,0.0332]
[1746672316863,0.005,98809.0,98808.0,0.03220985]
[1746672317266,0.005,98809.0,98808.0,0.03420985]
[1746672317558,0.005,98809.0,98808.0,0.03220985]
[1746672317749,0.005,98809.0,98808.0,0.03420985]
[1746672318306,0.005,98809.0,98808.0,0.03520985]
[1746672318521,0.004,98809.0,98808.0,0.03520985]
[1746672318699,0.004,98809.0,98808.0,0.03420985]
[1746672319107,0.004,98809.0,98808.0,0.03520985]
[1746672320133,0.004,98809.0,98808.0,0.13700397]
[1746672320954,0.004,98809.0,98808.0,0.55430397]
[1746672321164,0.004,98809.0,98808.0,0.56990356]
[1746672321400,0.004,98809.0,98808.0,0.57390356]
[1746672321601,0.004,98809.0,98808.0,1.07390356]
[1746672321760,0.004,98809.0,98808.0,1.07690356]
[1746672321968,0.004,98809.0,98808.0,0.65860356]
[1746672322379,0.004,98809.0,98808.0,0.65560356]
[1746672322583,0.004,98809.0,98808.0,0.65660356]
[1746672323079,0.004,98809.0,98808.0,0.66160356]
[1746672323290,0.104,98809.0,98808.0,0.66160356]
[1746672327131,0.104,98809.0,98808.0,1.00160356]
[1746672329158,0.104,98809.0,98808.0,0.99160356]
[1746672329364,0.104,98809.0,98808.0,0.99760356]
[1746672329585,0.104,98809.0,98808.0,1.00360356]
[1746672330607,0.004,98829.0,98828.0,0.55767179]
[1746672330863,0.004,98829.0,98828.0,0.67556591]
[1746672332191,0.004,98829.0,98828.0,1.17570038]
[1746672332381,0.004,98829.0,98828.0,1.17870038]
[1746672332595,0.004,98829.0,98828.0,1.19730982]
[1746672333453,0.004,98829.0,98828.0,1.19930982]
[1746672334648,0.004,98829.0,98828.0,1.24930982]
[1746672334851,0.004,98829.0,98828.0,1.26385067]
[1746672335260,0.004,98849.0,98848.0,0.23483085]
[1746672335463,0.004,98849.0,98848.0,0.33662497]
[1746672336391,0.004,98849.0,98848.0,0.3672116]
[1746672336593,0.004,98849.0,98848.0,0.40118455]
[1746672336918,0.004,98849.0,98848.0,0.33762497]
[1746672337523,0.004,98849.0,98848.0,0.83762497]
[1746672337736,0.004,98849.0,98848.0,1.17762497]
[1746672337909,0.004,98849.0,98848.0,1.20745404]
[1746672338514,0.004,98849.0,98848.0,1.27101362]
[1746672338905,0.004,98849.0,98848.0,1.27001362]
[1746672339268,0.004,98849.0,98848.0,1.27301362]
[1746672339689,0.004,98849.0,98848.0,1.24242699]
[1746672339895,0.004,98849.0,98848.0,1.24542699]
[1746672340094,0.004,98849.0,98848.0,1.24242699]
[1746672340359,0.004,98849.0,98848.0,1.24642699]
[1746672340728,0.004,98849.0,98848.0,1.24342699]
[1746672341142,0.004,98849.0,98848.0,1.24842699]
[1746672341510,0.004,98849.0,98848.0,1.21545404]
[1746672342262,0.004,98849.0,98848.0,1.21445404]
[1746672343264,0.004,98869.0,98868.0,0.20228992]
[1746672343619,0.004,98869.0,98868.0,0.20329596]
[1746672343969,0.004,98869.0,98868.0,0.2219054]
[1746672344162,0.004,98869.0,98868.0,0.22089936]
[1746672344377,0.004,98869.0,98868.0,0.22189936]
[1746672344564,0.0044492,98869.0,98868.0,0.00921289]
[1746672344751,0.0044492,98869.0,98868.0,0.01021894]
[1746672345154,0.0044492,98869.0,98868.0,0.21250886]
[1746672345357,0.0044492,98869.0,98868.0,0.21150281]
[1746672346099,0.0044492,98869.0,98868.0,0.71150281]
[1746672348445,0.0359492,98869.0,98868.0,0.71150281]
[1746672349804,0.0359492,98869.0,98868.0,0.21150281]
[1746672350596,0.0359492,98869.0,98868.0,0.21050281]
[1746672350781,0.04537956,98869.0,98868.0,0.21050281]
[1746672358654,0.04537956,98869.0,98868.0,0.00821289]
[1746672361316,0.01387956,98869.0,98868.0,0.00821289]
[1746672362097,0.04587956,98869.0,98868.0,0.00821289]
[1746672364336,0.01387956,98869.0,98868.0,0.00821289]
[1746672367766,0.01387956,98869.0,98868.0,0.00921923]
[1746672368599,0.01387956,98869.0,98868.0,0.14221335]
[1746672368937,0.01387956,98869.0,98868.0,0.64221335]
[1746672369115,0.01387956,98869.0,98868.0,0.64120701]
[1746672369487,0.0044492,98869.0,98868.0,0.64320701]
[1746672370044,0.0044492,98869.0,98868.0,0.61200701]
[1746672370220,0.0044492,98869.0,98868.0,0.51021289]
[1746672370681,0.0044492,98869.0,98868.0,0.51221289]
[1746672371088,0.0354492,98869.0,98868.0,0.51221289]
[1746672371519,0.0354492,98869.0,98868.0,0.01221289]
[1746672371732,0.04491864,98869.0,98868.0,0.01221289]
[1746672371902,0.04491864,98869.0,98868.0,0.01021289]
[1746672372258,0.04491864,98869.0,98868.0,0.21250281]
[1746672373131,0.04491864,98869.0,98868.0,0.00821289]
[1746672373337,0.35152937,98869.0,98868.0,0.00821289]
[1746672373538,0.71460194,98869.0,98868.0,0.00821289]
[1746672373704,0.71460194,98869.0,98844.0,0.01011695]
[1746672373909,0.01011572,98856.0,98843.0,0.20233975]
[1746672374113,0.01011613,98852.0,98848.0,0.2023305]
[1746672374291,0.031,98850.0,98848.0,0.2023305]
[1746672374921,0.34711949,98850.0,98838.0,0.00821289]
[1746672375147,0.69913116,98850.0,98838.0,0.00821289]
[1746672375352,0.69913116,98850.0,98849.0,0.002]
[1746672375554,0.35913116,98850.0,98849.0,0.002]
[1746672375995,0.35913116,98850.0,98849.0,0.005]
[1746672376206,0.35913116,98850.0,98849.0,0.002]
[1746672376782,0.01011725,98841.0,98836.0,0.20235494]
[1746672377035,0.01011766,98837.0,98834.0,0.20235799]
[1746672377238,0.01011797,98834.0,98830.0,0.26294953]
[1746672377576,0.00252963,98833.0,98830.0,0.27306791]
[1746672377778,0.0155,98831.0,98830.0,0.26294953]
[1746672377983,0.0155,98831.0,98830.0,0.20236683]
[1746672378383,0.0155,98831.0,98830.0,0.2025013]
[1746672378799,0.0314,98838.0,98837.0,0.20235336]
[1746672379002,0.0314,98836.0,98835.0,0.2023569]
[1746672379938,0.0314,98836.0,98831.0,0.20236565]
[1746672380138,0.0315,98833.0,98832.0,0.20236267]
[1746672384134,0.00252959,98836.0,98832.0,0.2023636]
[1746672384537,0.00252959,98836.0,98833.0,0.01011807]
[1746672384740,0.0164,98856.0,98847.0,0.01011664]
[1746672384741,0.00252962,98855.0,98847.0,0.01011664]
[1746672384944,0.00252962,98855.0,98851.0,0.01011623]
[1746672384945,0.0321,98853.0,98851.0,0.01011623]
[1746672385156,0.0346292,98852.0,98851.0,0.21243927]
[1746672385341,0.0346292,98852.0,98851.0,0.20232304]
[1746672386243,0.01011654,98848.0,98838.0,0.01011756]
[1746672386460,0.00252925,98847.0,98844.0,0.01011695]
[1746672386664,0.00252925,98850.0,98846.0,0.20233494]
[1746672387481,0.00252925,98850.0,98847.0,0.20233289]
[1746672387686,0.0319,98848.0,98847.0,0.20233289]
[1746672388291,0.00252922,98852.0,98849.0,0.20232855]
[1746672389052,0.00252922,98852.0,98851.0,0.20232471]
[1746672389290,0.20233375,98847.0,98839.0,0.20234826]
[1746672389410,0.01011633,98850.0,98835.0,0.01011787]
[1746672389411,0.04201695,98844.0,98838.0,0.01011756]
[1746672389612,0.00252947,98843.0,98839.0,0.20234927]
[1746672389828,0.00252947,98843.0,98839.0,0.21246673]
[1746672389829,0.0316,98841.0,98839.0,0.21246673]
[1746672390043,0.01842941,98840.0,98839.0,0.20234927]
[1746672390703,0.20233987,98844.0,98837.0,0.20235134]
[1746672390906,0.001521,98843.0,98839.0,0.2023477]
[1746672391114,0.001521,98843.0,98839.0,0.21246516]
[1746672391348,0.001521,98845.0,98841.0,0.20234464]
[1746672392298,0.01163774,98846.0,98841.0,0.20234464]
[1746672392506,0.001521,98845.0,98841.0,0.20234464]
[1746672392715,0.001521,98845.0,98841.0,0.21246189]
[1746672392932,0.01011695,98844.0,98838.0,0.20235129]
[1746672393151,0.001521,98843.0,98841.0,0.01011725]
[1746672393357,0.001521,98843.0,98840.0,0.20234669]
[1746672393780,0.033421,98843.0,98842.0,0.20234313]
[1746672394251,0.20235115,98839.0,98829.0,0.21248785]
[1746672394434,0.0163,98835.0,98833.0,0.20236127]
[1746672394648,0.04201807,98833.0,98826.0,0.01011879]
[1746672394855,0.017121,98832.0,98829.0,0.01011848]
[1746672396280,0.0163,98831.0,98792.0,0.4183]
[1746672396505,0.69212162,98831.0,98805.0,0.21253916]
[1746672396719,0.69060062,98831.0,98810.0,0.01012043]
[1746672396936,0.70003656,98831.0,98818.0,0.01011961]
[1746672397158,0.70003656,98831.0,98820.0,0.0101194]
[1746672397362,0.70003656,98831.0,98824.0,0.01011899]
[1746672397519,0.70003656,98831.0,98830.0,0.00113447]
[1746672398723,0.70003656,98831.0,98830.0,0.00013447]
[1746672399162,0.70103656,98831.0,98830.0,0.00013447]
[1746672408712,0.32913656,98831.0,98830.0,0.00013447]
[1746672411615,0.36043656,98831.0,98830.0,0.00013447]
[1746672411822,0.34513656,98831.0,98830.0,0.00013447]
[1746672412173,0.32913656,98831.0,98830.0,0.00013447]
[1746672415197,0.36043656,98831.0,98830.0,0.00013447]
[1746672420203,0.32913656,98831.0,98830.0,0.00013447]
[1746672422156,0.21280159,98831.0,98830.0,0.00013447]
[1746672422363,0.01043594,98831.0,98830.0,0.23370217]
[1746672423413,0.01043594,98831.0,98830.0,0.25236313]
[1746672423627,0.01043594,98831.0,98830.0,0.35415725]
[1746672423841,0.001,98831.0,98830.0,0.35415725]
[1746672424055,0.001,98831.0,98830.0,0.85415725]
[1746672424702,0.001521,98862.0,98859.0,0.21242344]
[1746672425123,0.01284082,98862.0,98859.0,0.21242344]
[1746672425329,0.001521,98862.0,98859.0,0.01011541]
[1746672425508,0.00943594,98861.0,98859.0,0.01011541]
[1746672425783,0.001521,98860.0,98859.0,0.01011541]
[1746672426401,0.01095694,98860.0,98859.0,0.01011541]
[1746672426930,0.01095694,98860.0,98857.0,0.01011562]
[1746672427332,0.00943594,98859.0,98857.0,0.01011562]
[1746672428291,0.002521,98860.0,98857.0,0.01011562]
[1746672428695,0.001521,98860.0,98857.0,0.01011562]
[1746672428919,0.001,98859.0,98857.0,0.01011562]
[1746672429054,0.001521,98860.0,98857.0,0.01011562]
[1746672429460,0.002521,98860.0,98857.0,0.01011562]
[1746672429668,0.001521,98860.0,98857.0,0.01011562]
[1746672430663,0.01011644,98849.0,98844.0,0.01011695]
[1746672430878,0.01011531,98860.0,98855.0,0.01011582]
[1746672431083,0.01011562,98857.0,98853.0,0.01011603]
[1746672431287,0.01011572,98856.0,98853.0,0.01011603]
[1746672432196,0.01163682,98855.0,98851.0,0.01011623]
[1746672432765,0.01163682,98855.0,98852.0,0.01011613]
[1746672433409,0.001521,98855.0,98830.0,0.10192859]
[1746672433620,0.21244626,98849.0,98844.0,0.01011695]
[1746672433859,0.001521,98848.0,98846.0,0.01011674]
[1746672434034,0.001521,98849.0,98846.0,0.01011674]
[1746672435104,0.001,98848.0,98846.0,0.01011674]
[1746672435445,0.01011603,98853.0,98846.0,0.01011674]
[1746672435446,0.20231352,98857.0,98852.0,0.01011613]
[1746672435599,0.001521,98855.0,98853.0,0.01011603]
[1746672435818,0.01163682,98855.0,98852.0,0.01011613]
[1746672436208,0.00944132,98854.0,98852.0,0.01011613]
[1746672436434,0.001521,98853.0,98852.0,0.01011613]
[1746672436832,0.01011644,98849.0,98844.0,0.21245405]
[1746672437069,0.01163723,98851.0,98847.0,0.01011664]
[1746672437467,0.01011664,98847.0,98841.0,0.01011725]
[1746672437673,0.01163754,98848.0,98844.0,0.01011695]
[1746672437869,0.01011664,98847.0,98841.0,0.01011725]
[1746672438075,0.001521,98846.0,98843.0,0.01011705]
[1746672438516,0.001521,98846.0,98843.0,0.21245813]
[1746672438716,0.001521,98849.0,98846.0,0.01011674]
[1746672440406,0.01454085,98853.0,98850.0,0.01011633]
[1746672440601,0.01011592,98854.0,98851.0,0.01011623]
[1746672440991,0.00944547,98853.0,98851.0,0.01011623]
[1746672441366,0.00944547,98853.0,98850.0,0.01011633]
[1746672441567,0.0195615,98853.0,98850.0,0.01011633]
[1746672442026,0.00944547,98853.0,98851.0,0.20232471]
[1746672442401,0.00944547,98853.0,98850.0,0.01011633]
[1746672442610,0.00944547,98852.0,98850.0,0.01011633]
[1746672443015,0.00944547,98852.0,98851.0,0.20232471]
[1746672443479,0.001,98854.0,98851.0,0.21244094]
[1746672443679,0.01011541,98859.0,98855.0,0.01011582]
[1746672443879,0.10179412,98858.0,98855.0,0.01011582]
[1746672444442,0.00944844,98857.0,98855.0,0.01011582]
[1746672444878,0.00944844,98857.0,98853.0,0.01011603]
[1746672445292,0.001,98854.0,98853.0,0.22773656]
[1746672445497,0.00944844,98857.0,98856.0,0.20231447]
[1746672445896,0.01044844,98857.0,98856.0,0.20231447]
[1746672447065,0.00944844,98857.0,98856.0,0.21861447]
[1746672447671,0.00944844,98857.0,98856.0,0.23371447]
[1746672447874,0.01563539,98869.0,98865.0,0.0101148]
[1746672448079,0.001521,98868.0,98865.0,0.0101148]
[1746672448701,0.00945979,98867.0,98865.0,0.0101148]
[1746672448905,0.001521,98866.0,98865.0,0.0101148]
[1746672449110,0.0019702,98866.0,98865.0,0.0101148]
[1746672449939,0.0004492,98866.0,98865.0,0.0419148]
[1746672450143,0.0004492,98866.0,98865.0,0.04393775]
[1746672450343,0.0004492,98866.0,98865.0,0.0419148]
[1746672451403,0.0014492,98866.0,98865.0,0.0419148]
[1746672452408,0.0014492,98866.0,98865.0,0.04393755]
[1746672453452,0.0014492,98866.0,98865.0,0.0419148]
[1746672453653,0.0014492,98866.0,98865.0,0.21889606]
[1746672454210,0.0004492,98866.0,98865.0,0.21889606]
[1746672454414,0.0004492,98866.0,98865.0,0.23469606]
[1746672454618,0.0014492,98866.0,98865.0,0.23469606]
[1746672454801,0.00991575,98866.0,98865.0,0.23469606]
[1746672454990,0.01091575,98866.0,98865.0,0.23469606]
[1746672455387,0.01091575,98866.0,98865.0,0.20229606]
[1746672456698,0.0014492,98866.0,98865.0,0.20229606]
[1746672456935,0.0014492,98866.0,98865.0,0.23279606]
[1746672457583,0.0014492,98866.0,98865.0,0.21769606]
[1746672457784,0.0014492,98866.0,98865.0,0.20229606]
[1746672457934,0.0004492,98866.0,98865.0,0.20229606]
[1746672458238,0.0014492,98866.0,98865.0,0.20229606]
[1746672465189,0.0014492,98866.0,98860.0,0.21242044]
[1746672465388,0.0101148,98865.0,98856.0,0.01011572]
[1746672465681,0.010115,98863.0,98858.0,0.01011551]
[1746672465837,0.001521,98862.0,98859.0,0.01011541]